bitfinex-derivatives/quotes_SOLF0:USTF0_20250730
["timestamp","ask_amount","ask_price","bid_price","bid_amount"]
[1753843597925,5.4984,181.9,181.86,5.4995]
[1753843598133,3.08,181.89,181.86,5.4995]
[1753843600330,3.08,181.88,181.85,5.4998]
[1753843600529,3.08,181.88,181.84,121.72]
[1753843601032,3.08,181.88,181.85,2.92]
[1753843601228,8.5791,181.88,181.85,2.92]
[1753843601426,3.08,181.87,181.85,2.92]
[1753843602030,3.08,181.87,181.84,127.2201]
[1753843602428,3.08,181.87,181.84,121.72]
[1753843602626,8.5793,181.87,181.84,127.2202]
[1753843602827,3.08,181.86,181.84,118.8]
[1753843603029,3.08,181.86,181.84,121.72]
[1753843603631,3.08,181.86,181.84,127.2201]
[1753843603839,3.08,181.85,181.84,121.72]
[1753843604035,3.08,181.85,181.84,127.2202]
[1753843606134,3.08,181.97,181.83,118.82]
[1753843606332,3.08,181.95,181.84,2.92]
[1753843606631,5.4984,181.9,181.84,2.92]
[1753843606935,3.08,181.89,181.84,2.92]
[1753843607133,5.4979,181.92,181.88,5.4989]
[1753843607432,3.08,181.9,181.88,2.92]
[1753843607631,124.0,181.99,181.88,2.92]
[1753843607831,3.08,181.92,181.88,2.92]
[1753843608131,3.08,181.91,181.88,2.92]
[1753843608329,3.08,181.9,181.88,2.92]
[1753843609234,3.08,181.9,181.89,8.4187]
[1753843610136,3.08,181.9,181.87,118.82]
[1753843610137,3.08,181.92,181.91,8.418]
[1753843610337,5.4969,181.96,181.92,2.92]
[1753843610633,3.08,182.01,181.92,2.92]
[1753843610835,4.12420741,182.0,181.92,2.92]
[1753843611024,3.08,181.98,181.91,5.498]
[1753843611427,5.4966,181.96,181.91,5.498]
[1753843611633,2.95,181.95,181.92,3.08]
[1753843612232,2.95,181.94,181.91,5.498]
[1753843612430,2.95,181.94,181.91,8.578]
[1753843613036,2.95,181.93,181.92,8.5778]
[1753843614036,2.95,181.93,181.92,3.08]
[1753843614234,2.95,181.92,181.91,8.578]
[1753843615533,2.95,181.92,181.9,3.08]
[1753843615735,2.95,181.92,181.88,3.08]
[1753843616133,2.95,181.92,181.9,8.5781]
[1753843616535,5.4974,181.94,181.9,8.5781]
[1753843616731,2.95,181.91,181.9,8.5781]
[1753843616933,8.4469,181.95,181.92,3.08]
[1753843617132,2.95,181.95,181.92,3.08]
[1753843617729,2.95,182.02,181.94,3.08]
[1753843617936,2.95,182.0,181.94,3.08]
[1753843619234,5.4968,181.96,181.94,3.08]
[1753843619439,2.95,181.95,181.94,3.08]
[1753843620031,2.95,181.95,181.93,5.4974]
[1753843620439,2.95,181.95,181.93,8.5774]
[1753843620638,2.95,181.94,181.93,8.5774]
[1753843622239,2.95,181.95,181.94,3.08]
[1753843622844,2.95,181.95,181.93,5.4974]
[1753843623037,5.4968,181.96,181.93,5.4974]
[1753843623038,5.4968,181.96,181.93,8.5774]
[1753843623239,2.95,181.94,181.93,8.5774]
[1753843624539,2.95,181.94,181.93,3.08]
[1753843625445,2.95,181.94,181.93,8.5775]
[1753843626043,2.95,181.96,181.95,3.08]
[1753843626744,2.95,181.98,181.97,3.08]
[1753843628239,2.95,181.98,181.97,8.5763]
[1753843628440,2.95,181.99,181.98,3.08]
[1753843628637,5.4948,182.02,181.98,3.08]
[1753843628845,4.57881941,182.07,181.98,3.08]
[1753843629046,2.95,182.01,181.98,3.08]
[1753843629539,2.95,182.01,182.0,5.4954]
[1753843629745,2.95,182.01,182.0,8.5754]
[1753843629945,2.95,182.01,182.0,3.08]
[1753843630141,2.95,182.01,181.98,3.08]
[1753843630342,2.95,182.01,181.99,3.08]
[1753843630749,2.95,182.01,181.99,8.5756]
[1753843630944,2.95,182.0,181.99,8.5756]
[1753843631346,2.95,182.0,181.99,3.08]
[1753843632344,2.95,182.0,181.97,5.4962]
[1753843632542,2.95,181.99,181.97,8.5762]
[1753843632742,2.95,181.98,181.97,8.5762]
[1753843633746,2.95,181.98,181.96,5.4965]
[1753843633940,5.4957,181.99,181.96,8.5765]
[1753843634145,2.95,181.97,181.96,8.5765]
[1753843634647,2.95,181.97,181.96,3.08]
[1753843634848,2.95,181.97,181.9,118.72]
[1753843635047,2.95,181.97,181.91,3.08]
[1753843635850,2.95,181.96,181.91,3.08]
[1753843636051,2.95,181.95,181.91,3.08]
[1753843637449,2.95,181.95,181.94,3.08]
[1753843638448,2.95,181.95,181.93,5.4973]
[1753843639154,2.95,181.95,181.93,8.5773]
[1753843639548,8.4469,181.95,181.93,8.5773]
[1753843639753,2.95,181.94,181.93,8.5773]
[1753843640152,8.4472,181.94,181.92,3.08]
[1753843640355,2.95,181.93,181.86,3.08]
[1753843640550,2.95,181.93,181.85,369.48]
[1753843640551,2.95,181.93,181.88,3.08]
[1753843640753,2.95,181.93,181.87,118.7]
[1753843641055,2.95,181.93,181.91,3.08]
[1753843641259,2.95,181.93,181.91,8.5778]
[1753843641458,3.21,181.94,181.91,3.08]
[1753843641753,3.21,181.94,181.93,5.4975]
[1753843641950,3.21,181.94,181.93,8.5075]
[1753843643357,3.21,181.95,181.94,5.4972]
[1753843643558,3.21,181.95,181.94,8.5072]
[1753843644954,3.21,181.97,181.94,3.01]
[1753843645853,3.21,182.0,181.87,118.7]
[1753843646055,3.21,182.0,181.88,3.01]
[1753843648060,3.21,182.0,181.98,8.5058]
[1753843650560,3.21,182.0,181.98,5.4958]
[1753843650756,3.21,182.0,181.97,8.5062]
[1753843650956,3.21,182.0,181.97,5.4962]
[1753843652065,3.21,182.0,181.97,3.01]
[1753843652662,3.21,182.0,181.97,8.5061]
[1753843653169,3.21,182.01,181.95,3.01]
[1753843653368,3.21,182.03,181.94,118.68]
[1753843653569,3.21,182.03,182.02,3.01]
[1753843653762,3.21,182.03,181.98,5.4958]
[1753843653962,3.21,182.03,181.98,3.01]
[1753843654365,3.21,182.03,181.94,118.68]
[1753843654570,5.4947,182.03,181.99,8.5055]
[1753843654870,3.21,182.02,181.99,8.5055]
[1753843655068,3.21,182.02,181.99,5.4955]
[1753843655261,5.4948,182.02,181.99,5.4955]
[1753843655467,3.21,182.0,181.99,8.5055]
[1753843655965,3.21,182.02,182.0,5.4953]
[1753843656166,3.21,182.01,182.0,8.5053]
[1753843656665,4.57881941,182.09,182.0,5.4953]
[1753843656875,3.21,182.08,182.02,3.01]
[1753843657076,4.14761698,182.07,182.02,3.01]
[1753843657267,5.494,182.05,182.02,8.5047]
[1753843657573,3.21,182.04,182.03,3.01]
[1753843657965,3.21,182.04,182.03,8.5045]
[1753843658166,3.21,182.06,181.94,135.18]
[1753843658362,4.57881941,182.11,181.94,135.18]
[1753843658363,3.21,182.08,182.05,3.01]
[1753843658672,3.21,182.12,182.05,3.01]
[1753843658872,4.14541088,182.11,182.05,3.01]
[1753843659070,3.21,182.1,182.05,3.01]
[1753843659268,3.21,182.09,182.05,3.01]
[1753843659663,3.21,182.09,182.08,5.4929]
[1753843659871,3.21,182.09,182.08,8.5029]
[1753843660469,3.21,182.09,182.03,3.01]
[1753843660969,3.21,182.09,182.06,5.4936]
[1753843661172,3.21,182.09,182.06,8.5036]
[1753843661367,3.21,182.09,182.06,3.01]
[1753843661566,3.21,182.08,182.07,8.5032]
[1753843662275,3.21,182.08,182.07,3.01]
[1753843662575,3.21,182.08,182.06,3.01]
[1753843662772,3.21,182.07,182.06,3.01]
[1753843663472,3.21,182.07,182.06,8.5035]
[1753843665472,3.21,182.17,182.08,3.01]
[1753843665674,3.21,182.15,182.08,3.01]
[1753843665867,5.4913,182.14,182.11,3.01]
[1753843666073,3.21,182.12,182.11,3.01]
[1753843666266,5.4909,182.15,182.11,3.01]
[1753843666571,3.21,182.14,182.03,3.01]
[1753843666771,3.21,182.14,182.12,5.4915]
[1753843666973,3.21,182.13,182.12,8.5015]
[1753843668776,5.4908,182.15,182.12,5.4915]
[1753843668982,3.21,182.15,182.12,8.5015]
[1753843669172,5.4906,182.16,182.13,5.4914]
[1753843669371,3.21,182.14,182.13,8.5014]
[1753843669774,3.21,182.14,182.13,3.01]
[1753843670078,3.21,182.14,182.12,3.01]
[1753843670272,3.21,182.14,182.02,118.6]
[1753843670472,3.21,182.14,182.11,3.01]
[1753843671276,3.21,182.14,182.11,8.5018]
[1753843671476,3.21,182.14,182.11,3.01]
[1753843672780,8.7012,182.14,182.11,8.5019]
[1753843672976,3.07,182.13,182.11,8.5019]
[1753843673977,3.07,182.13,182.07,121.55]
[1753843674482,5.4918,182.12,182.08,5.4927]
[1753843674775,5.4918,182.12,182.07,121.55]
[1753843674776,3.07,182.1,182.09,3.07]
[1753843675570,3.07,182.1,182.09,8.5626]
[1753843675882,3.07,182.1,182.09,5.4926]
[1753843676377,3.07,182.1,182.08,8.5629]
[1753843676578,3.07,182.11,182.09,3.07]
[1753843676778,3.07,182.1,182.09,3.07]
[1753843677274,3.07,182.13,182.09,3.07]
[1753843677580,3.07,182.15,182.09,3.07]
[1753843678476,3.07,182.15,182.12,5.4916]
[1753843678779,3.07,182.15,182.1,3.07]
[1753843679278,3.07,182.14,182.11,5.4918]
[1753843679480,3.07,182.14,182.1,3.07]
[1753843679882,3.07,182.14,182.11,5.492]
[1753843680082,3.07,182.14,182.08,3.07]
[1753843680480,5.4921,182.11,182.07,118.48]
[1753843680680,3.07,182.1,182.07,118.48]
[1753843681283,3.07,182.1,182.07,121.55]
[1753843681584,3.07,182.1,182.08,5.4929]
[1753843681974,3.07,182.1,182.09,3.07]
[1753843682175,3.07,182.1,182.09,8.5626]
[1753843682682,3.07,182.1,182.09,5.4926]
[1753843682984,3.07,182.1,182.07,121.55]
[1753843683682,3.07,182.1,182.08,5.493]
[1753843684581,3.07,182.1,182.07,127.0432]
[1753843684774,3.07,182.1,182.07,123.9732]
[1753843685381,3.07,182.09,182.08,3.07]
[1753843685685,3.07,182.21,182.07,121.55]
[1753843685877,3.07,182.19,182.09,5.4926]
[1753843686175,3.07,182.15,182.1,3.07]
[1753843687081,5.4917,182.13,182.1,3.07]
[1753843687276,3.07,182.11,182.08,3.07]
[1753843687574,5.4911,182.15,182.07,118.48]
[1753843687779,3.07,182.14,182.08,3.07]
[1753843688788,3.07,182.14,182.11,5.4919]
[1753843688977,3.07,182.14,182.11,3.07]
[1753843689174,3.07,182.14,182.12,3.07]
[1753843689379,3.07,182.14,182.12,8.5615]
[1753843690183,7.64881941,182.22,182.12,8.5615]
[1753843690386,3.07,182.2,182.12,8.5615]
[1753843690585,3.07,182.18,182.12,8.5615]
[1753843691180,3.07,182.18,182.12,5.4915]
[1753843691379,3.07,182.18,182.11,8.562]
[1753843691684,5.4911,182.15,182.11,8.562]
[1753843691884,3.07,182.14,182.11,8.562]
[1753843692082,3.07,182.14,182.12,5.4917]
[1753843693785,3.07,182.21,182.08,3.07]
[1753843693994,8.68766928,182.21,182.08,3.07]
[1753843694285,3.07,182.11,182.09,5.4926]
[1753843694486,3.07,182.11,182.09,8.5626]
[1753843694877,3.07,182.1,182.09,8.5626]
[1753843695982,3.07,182.1,182.09,3.07]
[1753843696483,3.07,182.1,182.09,8.5626]
[1753843696783,3.07,182.12,182.08,3.07]
[1753843696984,3.07,182.12,182.09,3.07]
[1753843697184,5.492,182.12,182.09,3.07]
[1753843697387,3.07,182.11,182.09,3.07]
[1753843697783,3.07,182.09,182.04,3.07]
[1753843697988,3.07,182.08,182.05,118.38]
[1753843698190,3.07,182.08,182.06,3.07]
[1753843698388,3.07,182.16,182.06,3.07]
[1753843698592,4.12128995,182.15,182.06,3.07]
[1753843698791,3.07,182.13,182.06,3.07]
[1753843699087,3.07,182.13,182.06,8.5635]
[1753843699293,3.07,182.11,182.06,3.07]
[1753843699492,3.07,182.11,182.07,3.07]
[1753843699788,3.07,182.1,182.09,3.07]
[1753843700095,4.57881941,182.17,182.09,3.07]
[1753843700286,3.07,182.11,182.09,3.07]
[1753843700588,3.07,182.11,182.1,3.07]
[1753843700891,3.07,182.13,182.09,3.07]
[1753843701093,3.07,182.13,182.05,118.38]
[1753843701094,3.07,182.13,182.1,3.07]
[1753843702289,5.4915,182.13,182.1,8.5623]
[1753843702492,3.22,182.12,182.11,2.99]
[1753843702982,3.22,182.12,182.1,8.4821]
[1753843703183,3.22,182.12,182.1,5.4921]
[1753843703788,3.22,182.11,182.08,2.99]
[1753843704294,3.22,182.11,182.08,8.4827]
[1753843704697,5.4918,182.12,182.09,5.4926]
[1753843704890,5.4918,182.12,182.09,8.4826]
[1753843705091,3.22,182.1,182.09,8.4826]
[1753843706394,3.22,182.1,182.09,2.99]
[1753843708106,3.22,182.1,182.09,8.4826]
[1753843710705,5.4918,182.12,182.09,8.4826]
[1753843710899,3.22,182.1,182.09,8.4826]
[1753843711296,3.22,182.1,182.08,5.4929]
[1753843712901,3.22,182.1,182.08,8.4829]
[1753843713102,3.22,182.1,182.07,5.4932]
[1753843713302,3.22,182.1,182.07,2.99]
[1753843713604,3.22,182.1,182.08,2.99]
[1753843713807,3.22,182.09,182.08,2.99]
[1753843714107,3.22,182.09,182.08,8.4829]
[1753843714306,8.7118,182.12,182.06,2.99]
[1753843714607,3.22,182.11,182.06,2.99]
[1753843715301,3.22,182.11,182.1,2.99]
[1753843715508,3.22,182.15,182.1,2.99]
[1753843715702,7.35582601,182.14,182.1,2.99]
[1753843715901,3.22,182.14,182.13,5.4914]
[1753843716102,3.22,182.14,182.13,8.4814]
[1753843716303,7.35558971,182.14,182.13,8.4814]
[1753843716607,3.22,182.14,182.13,8.4814]
[1753843717208,3.22,182.16,182.15,5.4908]
[1753843717408,3.22,182.16,182.15,8.4808]
[1753843717610,7.35524337,182.16,182.15,2.99]
[1753843719904,7.35524337,182.16,182.15,8.4808]
[1753843720103,3.22,182.18,182.06,16.5]
[1753843720302,3.22,182.18,182.07,2.99]
[1753843721107,3.22,182.18,182.17,5.4902]
[1753843721306,3.22,182.18,182.17,8.4802]
[1753843721503,3.22,182.22,182.08,16.5]
[1753843721708,3.22,182.29,182.23,2.99]
[1753843721904,3.22,182.27,182.18,118.3]
[1753843722107,3.22,182.27,182.19,2.99]
[1753843722312,3.22,182.27,182.25,5.4878]
[1753843724303,3.22,182.27,182.23,2.99]
[1753843724304,4.60994772,182.36,182.26,2.99]
[1753843724510,6.16675944,182.39,182.26,2.99]
[1753843724511,3.22,182.39,182.26,2.99]
[1753843724708,4.11058628,182.38,182.26,2.99]
[1753843724909,3.22,182.37,182.34,5.485]
[1753843725212,3.22,182.37,182.26,2.99]
[1753843725411,3.22,182.37,182.33,5.4852]
[1753843725609,3.22,182.37,182.33,8.4752]
[1753843726306,3.22,182.37,182.33,2.99]
[1753843726512,3.22,182.37,182.28,2.99]
[1753843727108,5.4846,182.36,182.28,2.99]
[1753843727406,3.22,182.35,182.28,2.99]
[1753843727605,3.22,182.35,182.3,5.4863]
[1753843727806,3.22,182.35,182.31,2.99]
[1753843728002,3.22,182.35,182.32,2.99]
[1753843728910,3.22,182.35,182.29,2.99]
[1753843729414,3.22,182.33,182.29,8.4765]
[1753843729815,3.22,182.33,182.29,2.99]
[1753843730113,8.7054,182.33,182.29,2.99]
[1753843730411,3.22,182.32,182.29,2.99]
[1753843731217,3.22,182.32,182.29,8.4765]
[1753843732412,118.16,182.43,182.3,8.5963]
[1753843732711,3.08,182.41,182.3,3.11]
[1753843732916,5.4845,182.37,182.31,5.486]
[1753843733117,3.08,182.36,182.31,3.11]
[1753843733810,3.08,182.36,182.32,3.11]
[1753843734414,3.08,182.36,182.32,8.5957]
[1753843734613,3.08,182.35,182.3,3.11]
[1753843734809,3.08,182.35,182.3,5.4861]
[1753843735616,3.08,182.34,182.31,5.486]
[1753843737118,3.08,182.34,182.31,8.596]
[1753843737914,3.08,182.34,182.29,5.4863]
[1753843738321,3.08,182.34,182.19,3.11]
[1753843738718,3.08,182.34,182.31,5.486]
[1753843738911,3.08,182.34,182.19,3.11]
[1753843738912,3.08,182.34,182.3,3.11]
[1753843740220,3.08,182.34,182.3,5.4863]
[1753843740420,3.08,182.34,182.26,3.11]
[1753843741017,3.08,182.34,182.19,3.11]
[1753843741418,5.4861,182.31,182.26,5.4873]
[1753843741624,3.08,182.3,182.26,5.4873]
[1753843741925,3.08,182.3,182.26,8.5973]
[1753843742224,3.08,182.3,182.27,5.4872]
[1753843742725,3.08,182.3,182.19,3.11]
[1753843743321,3.08,182.3,182.2,3.11]
[1753843743922,5.4866,182.3,182.25,5.4877]
[1753843744228,3.08,182.29,182.25,5.4877]
[1753843744427,3.08,182.29,182.23,3.11]
[1753843744627,3.08,182.29,182.27,5.4871]
[1753843745631,5.4857,182.32,182.28,5.4869]
[1753843745830,5.4857,182.32,182.18,118.3]
[1753843745831,3.08,182.33,182.2,3.11]
[1753843746522,3.08,182.33,182.32,5.4857]
[1753843748624,5.4846,182.36,182.32,5.4857]
[1753843748820,3.08,182.44,182.32,5.4857]
[1753843749021,5.4845,182.37,182.32,5.4857]
[1753843749223,3.08,182.44,182.26,19.61]
[1753843749420,3.08,182.44,182.27,3.11]
[1753843749621,3.08,182.43,182.27,3.11]
[1753843749821,3.08,182.43,182.35,3.11]
[1753843750025,3.08,182.43,182.33,3.11]
[1753843750326,3.08,182.41,182.33,3.11]
[1753843750932,8.5631,182.41,182.37,5.484]
[1753843751129,3.08,182.41,182.37,5.484]
[1753843751632,3.08,182.41,182.38,5.4839]
[1753843751828,3.08,182.41,182.34,3.11]
[1753843753130,3.08,182.41,182.38,5.4837]
[1753843753629,8.563,182.41,182.38,5.4837]
[1753843753830,3.08,182.4,182.38,5.4837]
[1753843754325,5.4834,182.4,182.34,3.11]
[1753843754530,3.08,182.39,182.32,3.11]
[1753843754934,5.4837,182.39,182.36,5.4844]
[1753843755132,3.08,182.38,182.36,5.4844]
[1753843755328,3.08,182.38,182.23,3.11]
[1753843755634,3.08,182.34,182.32,5.4857]
[1753843756735,3.08,182.34,182.28,3.11]
[1753843756930,3.08,182.34,182.25,3.11]
[1753843757443,8.5652,182.34,182.3,5.4861]
[1753843757629,3.08,182.33,182.3,5.4861]
[1753843757834,3.08,182.33,182.27,3.11]
[1753843759240,3.08,182.33,182.31,5.486]
[1753843761541,3.08,182.33,182.26,3.02]
[1753843762331,4.60994772,182.38,182.27,3.02]
[1753843762532,3.23,182.36,182.27,3.02]
[1753843763342,3.23,182.41,182.19,3.02]
[1753843763540,3.23,182.38,182.19,3.02]
[1753843763740,3.23,182.36,182.19,3.02]
[1753843763944,5.4858,182.32,182.27,5.487]
[1753843764248,7.23087662,182.31,182.23,3.02]
[1753843764442,4.60994772,182.34,182.25,5.4876]
[1753843764443,5.4867,182.29,182.25,5.4876]
[1753843764636,3.23,182.28,182.25,5.4876]
[1753843764837,3.23,182.28,182.23,3.02]
[1753843765342,3.23,182.28,182.18,129.2795]
[1753843765343,3.23,182.28,182.24,3.02]
[1753843765849,3.23,182.28,182.26,5.4873]
[1753843766149,3.23,182.28,182.24,3.02]
[1753843766346,3.23,182.28,182.18,129.2795]
[1753843766347,3.23,182.28,182.22,3.02]
[1753843766645,3.23,182.26,182.23,3.02]
[1753843766851,5.4867,182.29,182.26,5.4875]
[1753843767052,4.00922272,182.28,182.26,5.4875]
[1753843767244,5.4864,182.3,182.26,5.4875]
[1753843767446,3.23,182.28,182.26,5.4875]
[1753843769060,3.23,182.27,182.26,5.4875]
[1753843769353,3.23,182.27,182.24,5.4879]
[1753843769553,3.23,182.26,182.2,3.02]
[1753843769949,4.00967266,182.25,182.22,5.4885]
[1753843770156,3.23,182.24,182.22,5.4885]
[1753843770557,5.4875,182.27,182.21,3.02]
[1753843770857,4.00806683,182.26,182.22,3.02]
[1753843771060,3.23,182.26,182.22,3.02]
[1753843771451,4.60994772,182.31,182.19,3.02]
[1753843771758,7.23597004,182.3,182.19,3.02]
[1753843772053,3.23,182.34,182.29,3.02]
[1753843772255,3.23,182.32,182.29,3.02]
[1753843772558,3.23,182.33,182.3,3.02]
[1753843772758,3.23,182.32,182.31,3.02]
[1753843773558,3.23,182.32,182.31,8.506]
[1753843775560,3.23,182.38,182.27,3.02]
[1753843775759,8.61467386,182.37,182.27,3.02]
[1753843775956,5.4859,182.32,182.28,5.4869]
[1753843776255,3.23,182.31,182.25,3.02]
[1753843776660,4.60994772,182.37,182.28,5.4867]
[1753843776661,5.4859,182.32,182.28,5.4867]
[1753843776859,3.23,182.29,182.28,8.5067]
[1753843777255,3.23,182.29,182.28,3.02]
[1753843777656,3.23,182.31,182.28,3.02]
[1753843777858,3.23,182.31,182.27,5.4871]
[1753843777859,3.23,182.3,182.29,3.02]
[1753843778158,3.23,182.3,182.27,3.02]
[1753843778362,3.23,182.29,182.28,3.02]
[1753843778964,3.23,182.29,182.28,8.5069]
[1753843779164,134.55,182.43,182.28,3.02]
[1753843779165,3.23,182.37,182.28,3.02]
[1753843779361,3.23,182.35,182.28,3.02]
[1753843779560,3.23,182.34,182.31,8.5058]
[1753843779760,3.23,182.34,182.31,3.02]
[1753843780464,3.23,182.34,182.31,8.5059]
[1753843781260,8.7152,182.34,182.31,3.02]
[1753843781466,3.23,182.33,182.3,5.4862]
[1753843781661,3.23,182.33,182.27,3.02]
[1753843781867,3.23,182.31,182.28,5.4867]
[1753843783666,5.4858,182.32,182.29,5.4866]
[1753843783966,3.23,182.3,182.29,5.4866]
[1753843785168,3.23,182.32,182.31,8.5058]
[1753843785871,3.23,182.32,182.31,5.4858]
[1753843786469,3.23,182.32,182.2,3.02]
[1753843788174,3.23,182.33,182.3,5.4861]
[1753843788568,3.23,182.38,182.27,3.02]
[1753843788768,3.23,182.36,182.27,3.02]
[1753843788962,3.23,182.34,182.27,3.02]
[1753843789171,3.23,182.34,182.27,5.4869]
[1753843789571,3.23,182.34,182.28,5.4867]
[1753843789870,3.23,182.34,182.26,3.02]
[1753843790979,3.23,182.37,182.21,3.02]
[1753843791273,5.4853,182.34,182.3,5.4861]
[1753843791471,3.05,182.33,182.3,8.5261]
[1753843792775,3.05,182.33,182.31,5.486]
[1753843793170,3.05,182.33,182.32,5.4857]
[1753843793376,3.05,182.33,182.32,8.5257]
[1753843793578,3.05,182.33,182.3,3.04]
[1753843794277,4.60401901,182.39,182.31,5.4859]
[1753843794478,3.05,182.32,182.31,5.4859]
[1753843794679,3.05,182.32,182.31,8.5259]
[1753843794874,3.05,182.34,182.32,5.4856]
[1753843795082,5.485,182.35,182.32,8.5256]
[1753843795276,3.05,182.33,182.32,8.5256]
[1753843796176,3.05,182.33,182.31,5.4859]
[1753843796384,3.05,182.32,182.31,5.4859]
[1753843797478,3.05,182.32,182.31,8.5259]
[1753843798781,3.05,182.31,182.3,5.4863]
[1753843799886,3.05,182.31,182.3,8.5263]
[1753843800090,3.05,182.32,182.31,8.5258]
[1753843800286,3.05,182.33,182.32,3.04]
[1753843800487,7.0411856,182.33,182.32,8.5257]
[1753843800992,3.05,182.33,182.32,3.04]
[1753843801293,3.05,182.33,182.31,5.4859]
[1753843801494,3.05,182.32,182.31,8.5259]
[1753843804493,3.05,182.37,182.3,8.5261]
[1753843804691,3.05,182.35,182.3,8.5261]
[1753843804891,3.99157586,182.34,182.3,8.5261]
[1753843805095,3.05,182.33,182.3,8.5261]
[1753843805392,3.05,182.37,182.31,5.486]
[1753843805591,3.05,182.35,182.31,5.486]
[1753843805787,3.05,182.33,182.31,5.486]
[1753843806192,3.05,182.33,182.3,8.5262]
[1753843806392,3.05,182.33,182.3,5.4862]
[1753843806589,3.05,182.33,182.29,3.04]
[1753843807194,3.05,182.31,182.3,3.04]
[1753843807595,3.05,182.31,182.3,8.5261]
[1753843808299,5.4853,182.34,182.31,5.4859]
[1753843808499,3.05,182.33,182.32,3.04]
[1753843808698,3.05,182.33,182.31,5.4859]
[1753843809000,3.05,182.32,182.31,8.5259]
[1753843810398,3.05,182.32,182.3,5.4862]
[1753843810588,3.05,182.32,182.22,3.04]
[1753843811387,3.05,182.32,182.3,5.4861]
[1753843813306,3.05,182.32,182.22,3.04]
[1753843813798,3.05,182.32,182.3,5.4861]
[1753843815604,5.4858,182.32,182.29,5.4865]
[1753843815799,3.05,182.31,182.25,3.04]
[1753843816004,3.99622019,182.3,182.22,3.04]
[1753843816195,3.05,182.28,182.26,5.4873]
[1753843816399,3.05,182.32,182.2,3.04]
[1753843816595,3.05,182.3,182.2,3.04]
[1753843816800,3.05,182.3,182.27,3.04]
[1753843817199,3.05,182.33,182.21,3.04]
[1753843817404,3.05,182.31,182.29,8.5264]
[1753843817605,7.04944983,182.3,182.29,8.5264]
[1753843818006,3.05,182.31,182.3,8.526]
[1753843818407,7.04903852,182.31,182.3,8.526]
[1753843819713,3.99903852,182.31,182.3,8.526]